fUST/lending_fUST_20241230
["ID","MTS","AMOUNT","RATE_DAILY","PERIOD"]
[347062948,1735488645031,-644.12858507,0.00013699,2]
[347062950,1735488645041,-644.12858507,0.00013699,2]
[347062953,1735488645051,-644.12858507,0.00013699,2]
[347062955,1735488645060,-644.12858507,0.00013699,2]
[347062957,1735488645069,-644.12858507,0.00013699,2]
[347062958,1735488645079,-644.12858507,0.00013699,2]
[347062961,1735488645089,-644.12858507,0.00013699,2]
[347062963,1735488645098,-644.12858507,0.00013699,2]
[347062965,1735488645108,-644.12858507,0.00013699,2]
[347062967,1735488645118,-151.0,0.00013699,2]
[347062969,1735488645127,-640.73843463,0.00013699,2]
[347062971,1735488645136,-640.73843463,0.00013699,2]
[347062973,1735488645145,-640.73843463,0.00013699,2]
[347062975,1735488645154,-640.73843463,0.00013699,2]
[347062977,1735488645164,-640.73843463,0.00013699,2]
[347062978,1735488645173,-640.73843463,0.00013699,2]
[347062980,1735488645182,-640.73843463,0.00013699,2]
[347062983,1735488645192,-640.73843463,0.00013699,2]
[347062984,1735488645201,-640.73843463,0.00013699,2]
[347062986,1735488645210,-640.73843463,0.00013699,2]
[347062988,1735488645222,-640.73843463,0.00013699,2]
[347062990,1735488645231,-640.73843463,0.00013699,2]
[347062992,1735488645240,-640.73843463,0.00013699,2]
[347062994,1735488645252,-640.73843463,0.00013699,2]
[347062996,1735488645261,-640.73843463,0.00013699,2]
[347062998,1735488645270,-640.73843463,0.00013699,2]
[347063000,1735488645279,-640.73843463,0.00013699,2]
[347063002,1735488645288,-640.73843463,0.00013699,2]
[347063004,1735488645297,-640.73843463,0.00013699,2]
[347063006,1735488645307,-640.73843463,0.00013699,2]
[347063008,1735488645316,-640.73843463,0.00013699,2]
[347063010,1735488645326,-640.73843463,0.00013699,2]
[347063012,1735488645335,-640.73843463,0.00013699,2]
[347063014,1735488645344,-640.73843463,0.00013699,2]
[347063016,1735488645354,-640.73843463,0.00013699,2]
[347063018,1735488645363,-640.73843463,0.00013699,2]
[347063020,1735488645372,-640.73843463,0.00013699,2]
[347063022,1735488645381,-379.876751,0.00013699,2]
[347063024,1735488645390,-151.226711,0.00013699,2]
[347063026,1735488645399,-379.876751,0.00013699,2]
[347063028,1735488645408,-151.226711,0.00013699,2]
[347063030,1735488645418,-170.507864,0.00013699,2]
[347063032,1735488645427,-151.0,0.00013699,2]
[347063034,1735488645436,-634.33105029,0.00013699,2]
[347063036,1735488645446,-634.33105029,0.00013699,2]
[347063038,1735488645455,-634.33105029,0.00013699,2]
[347063040,1735488645464,-634.33105029,0.00013699,2]
[347063042,1735488645474,-634.33105029,0.00013699,2]
[347063044,1735488645483,-634.33105029,0.00013699,2]
[347063046,1735488645494,-634.33105029,0.00013699,2]
[347063048,1735488645503,-634.33105029,0.00013699,2]
[347063050,1735488645512,-634.33105029,0.00013699,2]
[347063052,1735488645522,-634.33105029,0.00013699,2]
[347063054,1735488645531,-170.507864,0.00013699,2]
[347063056,1735488645541,-151.0,0.00013699,2]
[347063058,1735488645550,-151.0,0.00013699,2]
[347063061,1735488645561,-151.0,0.00013699,2]
[347063064,1735488645571,-606.289548,0.00013699,2]
[347063066,1735488645580,-606.289548,0.00013699,2]
[347063069,1735488645589,-277.030062,0.00013699,2]
[347063071,1735488645598,-277.030062,0.00013699,2]
[347063073,1735488645608,-151.0,0.00013699,2]
[347063075,1735488645617,-245.67763,0.00013699,2]
[347063077,1735488645627,-257.830978,0.00013699,2]
[347063079,1735488645636,-151.0,0.00013699,2]
[347063081,1735488645645,-151.0,0.00013699,2]
[347063083,1735488645655,-480.132294,0.00013699,2]
[347063085,1735488645664,-480.132294,0.00013699,2]
[347063087,1735488645673,-208.307159,0.00013699,2]
[347063089,1735488645683,-151.0,0.00013699,2]
[347063091,1735488645692,-208.307159,0.00013699,2]
[347063093,1735488645702,-151.0,0.00013699,2]
[347063095,1735488645711,-151.0,0.00013699,2]
[347063097,1735488645720,-630.573369,0.00013699,2]
[347063099,1735488645730,-151.0,0.00013699,2]
[347063101,1735488645739,-374.405708,0.00013699,2]
[347063103,1735488645750,-374.405708,0.00013699,2]
[347063105,1735488645759,-620.358059,0.00013699,2]
[347063107,1735488645770,-620.358059,0.00013699,2]
[347063109,1735488645779,-649.116537,0.00013699,2]
[347063111,1735488645789,-649.116537,0.00013699,2]
[347063113,1735488645799,-403.290456,0.00013699,2]
[347063115,1735488645808,-403.290456,0.00013699,2]
[347063117,1735488645818,-151.0,0.00013699,2]
[347063119,1735488645827,-1185.356867,0.00013699,2]
[347063121,1735488645836,-151.0,0.00013699,2]
[347063131,1735488645916,-1185.356867,0.00013699,2]
[347063133,1735488645926,-268.41829,0.00013699,2]
[347063135,1735488645936,-151.0,0.00013699,2]
[347063137,1735488645946,-151.0,0.00013699,2]
[347063139,1735488645955,-413.007723,0.00013699,2]
[347063141,1735488645965,-413.007723,0.00013699,2]
[347063143,1735488645974,-151.0,0.00013699,2]
[347063145,1735488645983,-200.580711,0.00013699,2]
[347063147,1735488645993,-1521.15,0.00013841,2]
[347063149,1735488646003,-1066.5,0.00013841,2]
[347063152,1735488646012,-816.47,0.00013841,2]
[347063154,1735488646022,-682.01,0.00013841,2]
[347063156,1735488646031,-500.0,0.00013841,2]
[347063157,1735488646040,-500.0,0.00013842,2]
[347063160,1735488646050,-151.0,0.00013842,2]
[347063162,1735488646060,-629.394796,0.00013842,2]
[347063163,1735488646069,-629.394796,0.00013842,2]
[347063166,1735488646078,-991.727237,0.00013842,2]
[347063168,1735488646087,-991.727237,0.00013842,2]
[347063169,1735488646097,-229.48486196,0.00013842,2]
[347063171,1735488646107,-500.0,0.00013842,2]
[347063173,1735488646116,-811.81,0.00013842,2]
[347063176,1735488646126,-1379.83,0.00013842,2]
[347063177,1735488646134,-500.0,0.00013842,2]
[347063179,1735488646144,-13317.34,0.00013842,2]
[347063181,1735488646154,-555.56,0.00013842,2]
[347063184,1735488646165,-581.47,0.00013842,2]
[347063186,1735488646175,-500.0,0.00013842,2]
[347063188,1735488646184,-584.07,0.00013842,2]
[347063190,1735488646194,-500.0,0.00013842,2]
[347063192,1735488646203,-500.0,0.00013842,2]
[347063194,1735488646212,-500.0,0.00013842,2]
[347063196,1735488646223,-229.371443,0.00013844,2]
[347063198,1735488646232,-229.371443,0.00013844,2]
[347063200,1735488646242,-2677.29,0.00013844,2]
[347063202,1735488646252,-3191.68,0.00013847,2]
[347063204,1735488646261,-400.0,0.00013973,2]
[347063206,1735488646271,-1000.0,0.00014,14]
[347063208,1735488646280,-1000.0,0.00014,2]
[347063210,1735488646289,-581.3113188,0.00014082,2]
[347063212,1735488646298,-654.99043951,0.00014099,2]
[347063213,1735488646307,-1521.15,0.00014115,2]
[347063215,1735488646316,-1066.5,0.00014115,2]
[347063217,1735488646325,-816.47,0.00014115,2]
[347063219,1735488646334,-682.01,0.00014115,2]
[347063221,1735488646344,-500.0,0.00014115,2]
[347063223,1735488646355,-505.26183485,0.00014116,2]
[347063225,1735488646364,-500.26113605,0.00014116,2]
[347063227,1735488646373,-811.81,0.00014116,2]
[347063229,1735488646383,-1379.83,0.00014116,2]
[347063231,1735488646393,-500.0,0.00014116,2]
[347063233,1735488646402,-13317.34,0.00014116,2]
[347063235,1735488646411,-555.56,0.00014116,2]
[347063237,1735488646421,-581.47,0.00014116,2]
[347063239,1735488646430,-500.0,0.00014116,2]
[347063241,1735488646440,-584.07,0.00014116,2]
[347063243,1735488646449,-154.31972979,0.00014116,2]
[347063245,1735488646458,-500.0,0.00014116,2]
[347063247,1735488646468,-636.91140752,0.00014116,2]
[347063249,1735488646477,-2677.29,0.00014118,2]
[347063251,1735488646486,-3191.68,0.00014121,2]
[347063253,1735488646496,-151.0,0.00014125,2]
[347063255,1735488646505,-151.0,0.00014125,2]
[347063257,1735488646515,-151.0,0.00014126,2]
[347063259,1735488646525,-1000.0,0.00014247,2]
[347063261,1735488646534,-1000.0,0.00014247,2]
[347063263,1735488646543,-275.33731695,0.00014247,2]
[347063265,1735488646552,-1000.0,0.00014247,2]
[347063267,1735488646562,-1521.15,0.00014389,2]
[347063269,1735488646572,-1066.5,0.00014389,2]
[347063271,1735488646581,-816.47,0.00014389,2]
[347063273,1735488646591,-682.01,0.00014389,2]
[347063275,1735488646600,-500.0,0.00014389,2]
[347063277,1735488646610,-811.81,0.0001439,2]
[347063279,1735488646619,-1379.83,0.0001439,2]
[347063282,1735488646629,-500.0,0.0001439,2]
[347063283,1735488646638,-13317.34,0.0001439,2]
[347063286,1735488646647,-555.56,0.0001439,2]
[347063287,1735488646657,-581.47,0.0001439,2]
[347063289,1735488646666,-500.0,0.0001439,2]
[347063291,1735488646676,-584.07,0.0001439,2]
[347063294,1735488646686,-500.0,0.0001439,2]
[347063295,1735488646695,-2677.29,0.00014392,2]
[347063297,1735488646704,-3191.68,0.00014395,2]
[347063299,1735488646713,-160.0,0.00014662,2]
[347063301,1735488646722,-1521.15,0.00014663,2]
[347063303,1735488646731,-1066.5,0.00014663,2]
[347063305,1735488646741,-816.47,0.00014663,2]
[347063308,1735488646751,-682.01,0.00014663,2]
[347063309,1735488646761,-500.0,0.00014663,2]
[347063311,1735488646770,-811.81,0.00014664,2]
[347063313,1735488646780,-1379.83,0.00014664,2]
[347063316,1735488646790,-500.0,0.00014664,2]
[347063317,1735488646799,-13317.34,0.00014664,2]
[347063319,1735488646809,-555.56,0.00014664,2]
[347063321,1735488646818,-581.47,0.00014664,2]
[347063323,1735488646828,-500.0,0.00014664,2]
[347063325,1735488646837,-584.07,0.00014664,2]
[347063327,1735488646847,-500.0,0.00014664,2]
[347063329,1735488646856,-151.0,0.00014665,2]
[347063331,1735488646865,-379.876751,0.00014665,2]
[347063334,1735488646877,-151.226711,0.00014665,2]
[347063336,1735488646886,-379.876751,0.00014665,2]
[347063338,1735488646895,-151.226711,0.00014665,2]
[347063340,1735488646905,-151.0,0.00014665,2]
[347063342,1735488646914,-151.0,0.00014665,2]
[347063344,1735488646924,-229.371443,0.00014666,2]
[347063346,1735488646933,-229.371443,0.00014666,2]
[347063348,1735488646943,-151.0,0.00014666,2]
[347063350,1735488646953,-152.147231,0.00014666,2]
[347063352,1735488646963,-277.030062,0.00014666,2]
[347063354,1735488646973,-277.030062,0.00014666,2]
[347063356,1735488646983,-2677.29,0.00014666,2]
[347063358,1735488646992,-171.53885411,0.00014668,2]
[347063360,1735488647001,-606.289548,0.00014669,2]
[347063362,1735488647011,-606.289548,0.00014669,2]
[347063364,1735488647020,-151.0,0.00014669,2]
[347063366,1735488647029,-151.0,0.00014669,2]
[347063368,1735488647039,-480.132294,0.00014669,2]
[347063370,1735488647048,-480.132294,0.00014669,2]
[347063372,1735488647057,-208.307159,0.00014669,2]
[347063374,1735488647067,-151.0,0.00014669,2]
[347063376,1735488647076,-208.307159,0.00014669,2]
[347063378,1735488647085,-3191.68,0.00014669,2]
[347063380,1735488647094,-151.0,0.00014669,2]
[347063382,1735488647104,-151.0,0.00014669,2]
[347063384,1735488647113,-630.573369,0.00014669,2]
[347063386,1735488647122,-374.405708,0.00014669,2]
[347063388,1735488647132,-374.405708,0.00014669,2]
[347063390,1735488647141,-620.358059,0.00014669,2]
[347063391,1735488647150,-620.358059,0.00014669,2]
[347063392,1735488647160,-649.116537,0.00014669,2]
[347063393,1735488647169,-649.116537,0.00014669,2]
[347063394,1735488647178,-403.290456,0.00014669,2]
[347063395,1735488647187,-403.290456,0.00014669,2]
[347063396,1735488647196,-151.0,0.00014669,2]
[347063397,1735488647205,-279.980004,0.00014673,2]
[347063398,1735488647213,-952.160103,0.00014673,2]
[347063399,1735488647222,-952.160103,0.00014673,2]
[347063400,1735488647231,-170.507864,0.00014673,2]
[347063401,1735488647240,-170.507864,0.00014673,2]
[347063402,1735488647250,-151.0,0.00014673,2]
[347063403,1735488647261,-1613.0,0.00014788,2]
[347063404,1735488647270,-151.0,0.00014936,2]
[347063405,1735488647280,-1521.15,0.00014936,2]
[347063406,1735488647289,-1185.356867,0.00014936,2]
[347063407,1735488647299,-1185.356867,0.00014936,2]
[347063408,1735488647308,-413.007723,0.00014936,2]
[347063409,1735488647318,-413.007723,0.00014936,2]
[347063410,1735488647328,-1066.5,0.00014936,2]
[347063411,1735488647337,-816.47,0.00014936,2]
[347063413,1735488647347,-682.01,0.00014936,2]
[347063414,1735488647356,-519.26033568,0.00014936,2]
[347063416,1735488647366,-811.81,0.00014938,2]
[347063418,1735488647375,-1379.83,0.00014938,2]
[347063420,1735488647384,-314.48415293,0.00014938,2]
[347063422,1735488647394,-13317.34,0.00014938,2]
[347063424,1735488647403,-555.56,0.00014938,2]
[347063426,1735488647412,-581.47,0.00014938,2]
[347063428,1735488647422,-500.0,0.00014938,2]
[347063437,1735488647500,-584.07,0.00014938,2]
[347063439,1735488647510,-197.51426617,0.00014938,2]
[347063441,1735488647521,-2677.29,0.0001494,2]
[347063443,1735488647531,-3191.68,0.00014943,2]
[347063445,1735488647540,-301.999,0.0001499,2]
[347063447,1735488647549,-160.0,0.00014999,2]
[347063449,1735488647559,-111740.22908789,0.00015,2]
[347063451,1735488647569,-151.0,0.00015,2]
[347063453,1735488647578,-229.371443,0.00015,2]
[347063455,1735488647588,-229.37145,0.00015,2]
[347063457,1735488647597,-159.520838,0.00015,2]
[347063459,1735488647606,-1000.0,0.00015,15]
[347063461,1735488647615,-151.0,0.00015,2]
[347063463,1735488647624,-151.0,0.00015,2]
[347063465,1735488647633,-1000.0,0.00015,2]
[347063467,1735488647643,-151.0,0.00015,2]
[347063469,1735488647652,-629.394796,0.00015,2]
[347063471,1735488647661,-629.394796,0.00015,2]
[347063473,1735488647671,-991.727237,0.00015,2]
[347063475,1735488647681,-991.727237,0.00015,2]
[347063477,1735488647690,-151.0,0.00015,2]
[347063479,1735488647699,-151.0,0.00015,2]
[347063481,1735488647708,-151.0,0.00015,2]
[347063483,1735488647718,-200.580711,0.00015,2]
[347063485,1735488647727,-187.1646344,0.00015041,2]
[347063487,1735488647736,-444.1983521,0.00015041,2]
[347063489,1735488647745,-153.5094505,0.00015041,2]
[347063491,1735488647754,-153.0,0.00015041,2]
[347063493,1735488647763,-153.5094505,0.00015041,2]
[347063495,1735488647772,-321.4358717,0.00015041,2]
[347063497,1735488647782,-214.3278492,0.00015041,2]
[347063499,1735488647791,-153.0,0.00015041,2]
[347063500,1735488647801,-214.3278492,0.00015041,2]
[347063503,1735488647811,-153.5094505,0.00015041,2]
[347063505,1735488647820,-153.0,0.00015041,2]
[347063506,1735488647830,-153.5094505,0.00015041,2]
[347063508,1735488647840,-153.0,0.00015041,2]
[347063510,1735488647850,-153.0,0.00015041,2]
[347063512,1735488647859,-214.3278492,0.00015041,2]
[347063515,1735488647869,-153.0,0.00015041,2]
[347063517,1735488647878,-214.3278492,0.00015041,2]
[347063519,1735488647888,-153.5094505,0.00015041,2]
[347063521,1735488647897,-153.0,0.00015041,2]
[347063522,1735488647907,-1521.15,0.0001521,2]
[347063525,1735488647916,-1066.5,0.0001521,2]
[347063527,1735488647926,-816.47,0.0001521,2]
[347063528,1735488647935,-682.01,0.0001521,2]
[347063530,1735488647945,-160.3462879,0.00015211,2]
[347063533,1735488647955,-811.81,0.00015212,2]
[347063535,1735488647965,-1379.83,0.00015212,2]
[347063536,1735488647974,-13317.34,0.00015212,2]
[347063538,1735488647983,-555.56,0.00015212,2]
[347063540,1735488647992,-581.47,0.00015212,2]
[347063542,1735488648002,-397.69436605,0.00015212,2]
[347063544,1735488648012,-584.07,0.00015212,2]
[347063546,1735488648022,-952.160103,0.00015213,2]
[347063548,1735488648032,-952.160103,0.00015213,2]
[347063551,1735488648042,-151.0,0.00015213,2]
[347063553,1735488648053,-379.876751,0.00015213,2]
[347063555,1735488648062,-151.226711,0.00015213,2]
[347063557,1735488648071,-379.876751,0.00015213,2]
[347063559,1735488648081,-151.226711,0.00015213,2]
[347063561,1735488648090,-151.0,0.00015213,2]
[347063563,1735488648100,-170.507864,0.00015213,2]
[347063565,1735488648109,-170.507864,0.00015213,2]
[347063567,1735488648118,-151.0,0.00015213,2]
[347063569,1735488648128,-151.0,0.00015213,2]
[347063571,1735488648137,-277.030062,0.00015213,2]
[347063573,1735488648146,-277.030062,0.00015213,2]
[347063574,1735488648155,-2677.29,0.00015214,2]
[347063576,1735488648165,-606.289548,0.00015217,2]
[347063578,1735488648175,-606.289548,0.00015217,2]
[347063580,1735488648184,-151.0,0.00015217,2]
[347063582,1735488648194,-151.0,0.00015217,2]
[347063584,1735488648204,-3191.68,0.00015217,2]
[347063586,1735488648213,-480.132294,0.00015221,2]
[347063588,1735488648223,-480.132294,0.00015221,2]
[347063590,1735488648233,-208.307159,0.00015221,2]
[347063592,1735488648243,-151.88518,0.00015221,2]
[347063594,1735488648254,-208.307159,0.00015221,2]
[347063596,1735488648263,-151.0,0.00015221,2]
[347063598,1735488648274,-151.0,0.00015221,2]
[347063600,1735488648285,-630.573369,0.00015221,2]
[347063602,1735488648295,-374.405708,0.00015221,2]
[347063604,1735488648305,-374.405708,0.00015221,2]
[347063607,1735488648315,-649.116537,0.00015221,2]
[347063608,1735488648324,-649.116537,0.00015221,2]
[347063610,1735488648334,-151.0,0.00015248,2]
[347063613,1735488648344,-1500.0,0.00015248,2]
[347063615,1735488648354,-1500.0,0.00015248,2]
[347063617,1735488648364,-1500.0,0.00015248,2]
[347063618,1735488648374,-1521.21043767,0.00015484,2]
[347063621,1735488648384,-1066.71011144,0.00015484,2]
[347063623,1735488648394,-816.68084056,0.00015484,2]
[347063624,1735488648404,-682.02723047,0.00015484,2]
[347063627,1735488648414,-620.358059,0.00015486,2]
[347063629,1735488648424,-620.358059,0.00015486,2]
[347063630,1735488648434,-403.290456,0.00015486,2]
[347063632,1735488648444,-403.290456,0.00015486,2]
[347063635,1735488648455,-811.8506022,0.00015486,2]
[347063637,1735488648465,-1379.8861713,0.00015486,2]
[347063638,1735488648474,-13317.36,0.00015486,2]
[347063641,1735488648484,-555.58983595,0.00015486,2]
[347063642,1735488648497,-581.59792449,0.00015486,2]
[347063644,1735488648507,-151.0,0.00015486,2]
[347063646,1735488648517,-584.12886507,0.00015486,2]
[347063648,1735488648528,-2677.43621725,0.00015488,2]
[347063650,1735488648538,-3191.68590427,0.00015491,2]
[347063652,1735488648548,-654.99043951,0.00015771,2]
[347063654,1735488648557,-2559.51352498,0.00015787,2]
[347063656,1735488648567,-153.5094505,0.00015863,2]
[347063658,1735488648577,-153.5094505,0.00015863,2]
[347063660,1735488648588,-213.8477522,0.00015863,2]
[347063662,1735488648598,-153.5094505,0.00015863,2]
[347063664,1735488648608,-153.5094505,0.00015863,2]
[347063666,1735488648618,-1000.0,0.00016,16]
[347063668,1735488648628,-150.0,0.00016,2]
[347063670,1735488648638,-1000.0,0.00016,2]
[347063672,1735488648648,-352.4553754,0.00016027,2]
[347063674,1735488648659,-569.50751627,0.00016192,2]
[347063676,1735488648668,-300.374066,0.00016192,2]
[347063678,1735488648678,-1185.356867,0.00016192,2]
[347063680,1735488648688,-1185.356867,0.00016192,2]
[347063682,1735488648697,-413.007723,0.00016192,2]
[347063684,1735488648707,-413.007723,0.00016192,2]
[347063686,1735488648716,-2258.0,0.00016266,2]
[347063689,1735488648727,-569.50751627,0.00016274,2]
[347063690,1735488648736,-569.50751627,0.00016356,2]
[347063692,1735488648748,-1312.48004024,0.0001643,2]
[347063694,1735488648758,-1936.15870154,0.0001643,2]
[347063697,1735488648768,-500.0,0.00016438,2]
[347063698,1735488648777,-500.0,0.00016438,2]
[347063700,1735488648787,-500.0,0.00016438,2]
[347063702,1735488648797,-500.0,0.00016438,2]
[347063704,1735488648806,-500.0,0.00016438,2]
[347063706,1735488648816,-500.0,0.00016438,2]
[347063708,1735488648825,-505.21656243,0.00016438,2]
[347063710,1735488648835,-500.0,0.00016438,2]
[347063712,1735488648845,-1000.0,0.00016438,4]
[347063714,1735488648854,-1000.0,0.00016438,4]
[347063716,1735488648864,-506.62127031,0.00016438,4]
[347063718,1735488648873,-500.0,0.00016438,2]
[347063720,1735488648882,-500.0,0.00016438,2]
[347063722,1735488648892,-569.50751627,0.00016438,2]
[347063724,1735488648902,-569.50751627,0.00016493,2]
[347063726,1735488648912,-636.93801637,0.0001651,2]
[347063728,1735488648922,-2003.57395797,0.00016546,2]
[347063737,1735488649001,-500.8261375,0.00016546,2]
[347063739,1735488649012,-2048.13947359,0.00016546,2]
[347063741,1735488649022,-569.50751627,0.00016575,2]
[347063743,1735488649032,-569.50751627,0.00016658,2]
[347063745,1735488649042,-151.0,0.00016685,2]
[347063747,1735488649051,-569.50751627,0.0001674,2]
[347063749,1735488649061,-569.50751627,0.00016822,2]
[347063751,1735488649071,-457.67,0.000169,2]
[347063753,1735488649080,-1195.05,0.000169,2]
[347063755,1735488649090,-1658.17,0.000169,2]
[347063757,1735488649100,-569.50751627,0.00016904,2]
[347063759,1735488649110,-569.50751627,0.00016986,2]
[347063761,1735488649119,-1000.0,0.00017,17]
[347063763,1735488649129,-1000.0,0.00017,2]
[347063765,1735488649139,-569.50751627,0.00017041,2]
[347063767,1735488649149,-166.0,0.00017285,2]
[347063769,1735488649159,-163.35,0.00017285,2]
[347063771,1735488649168,-473.59690082,0.00017336,2]
[347063773,1735488649178,-654.99043951,0.00017443,2]
[347063775,1735488649189,-5383.97,0.000177,7]
[347063777,1735488649199,-375.1,0.00017808,4]
[347063779,1735488649209,-3162.0,0.00017893,2]
[347063781,1735488649219,-5164.75756255,0.00018,2]
[347063784,1735488649229,-1000.0,0.00018,18]
[347063786,1735488649238,-1000.0,0.00018,2]
[347063787,1735488649247,-166.0,0.00018453,2]
[347063789,1735488649257,-178.05,0.00018453,2]
[347063791,1735488649266,-159.13,0.00018834,2]
[347063793,1735488649276,-1540.47921773,0.000189,2]
[347063795,1735488649285,-352.4553754,0.00018959,2]
[347063797,1735488649295,-352.4553754,0.00018959,2]
[347063799,1735488649305,-352.4553754,0.00018959,2]
[347063801,1735488649315,-352.4553754,0.00018986,2]
[347063803,1735488649325,-352.4553754,0.00018986,2]
[347063806,1735488649335,-749.7887003,0.00018986,2]
[347063808,1735488649349,-1000.0,0.00019,19]
[347063810,1735488649359,-1000.0,0.00019,2]
[347063811,1735488649368,-182.4,0.00019009,2]
[347063814,1735488649379,-654.99043951,0.00019114,2]
[347063816,1735488649390,-500.0,0.00019178,3]
[347063817,1735488649399,-500.0,0.00019178,3]
[347063819,1735488649408,-301.78802746,0.00019178,3]
[347063821,1735488649418,-500.0,0.00019178,2]
[347063823,1735488649429,-467.84112293,0.00019178,2]
[347063825,1735488649440,-164.984708,0.00019178,2]
[347063827,1735488649449,-1017.592777,0.00019178,11]
[347063829,1735488649459,-164.984708,0.00019178,2]
[347063831,1735488649468,-164.0,0.00019203,2]
[347063833,1735488649477,-164.0,0.00019203,2]
[347063835,1735488649486,-173.36,0.00019203,2]
[347063837,1735488649496,-177.0,0.00019232,2]
[347063839,1735488649505,-221.52,0.00019232,2]
[347063842,1735488649515,-419.9382312,0.00019233,2]
[347063844,1735488649525,-358311.60203822,0.00019235,2]
[347063846,1735488649534,-408.8045394,0.0001926,2]
[347063848,1735488649543,-212.7413024,0.0001926,2]
[347063850,1735488649553,-362.5952416,0.0001926,2]
[347063852,1735488649562,-153.0,0.0001926,2]
[347063854,1735488649571,-154.0,0.00019558,2]
[347063856,1735488649581,-154.0,0.00019558,2]
[347063858,1735488649589,-154.0,0.00019558,2]
[347063860,1735488649599,-154.0,0.00019558,2]
[347063861,1735488649609,-154.0,0.00019558,2]
[347063863,1735488649618,-154.0,0.00019558,2]
[347063865,1735488649627,-154.0,0.00019558,2]
[347063867,1735488649636,-154.0,0.00019558,2]
[347063869,1735488649646,-154.0,0.00019558,2]
[347063871,1735488649655,-155.0,0.00019561,2]
[347063873,1735488649665,-155.0,0.00019561,2]
[347063875,1735488649674,-155.0,0.00019561,2]
[347063877,1735488649683,-155.0,0.00019561,2]
[347063879,1735488649693,-155.0,0.00019561,2]
[347063881,1735488649703,-155.0,0.00019561,2]
[347063884,1735488649713,-155.0,0.00019561,2]
[347063885,1735488649723,-155.0,0.00019561,2]
[347063887,1735488649732,-155.0,0.00019561,2]
[347063889,1735488649742,-155.0,0.00019561,2]
[347063891,1735488649752,-155.0,0.00019561,2]
[347063892,1735488649762,-155.0,0.00019561,2]
[347063893,1735488649772,-155.0,0.00019561,2]
[347063894,1735488649782,-155.0,0.00019561,2]
[347063895,1735488649791,-155.0,0.00019561,2]
[347063896,1735488649801,-155.0,0.00019561,2]
[347063897,1735488649811,-155.0,0.00019561,2]
[347063899,1735488649821,-155.0,0.00019561,2]
[347063901,1735488649830,-155.0,0.00019561,2]
[347063903,1735488649840,-162.65,0.00019561,2]
[347063905,1735488649850,-3833.0,0.00019682,2]
[347063907,1735488649859,-166.911396,0.00019685,2]
[347063909,1735488649868,-151.0,0.00019685,2]
[347063911,1735488649878,-730.661,0.0001969,2]
[347063913,1735488649887,-281.3521719,0.00019781,2]
[347063915,1735488649897,-28451.93,0.000198,4]
[347063917,1735488649906,-10028.13017446,0.00019899,2]
[347063919,1735488649915,-159.0,0.00019905,2]
[347063921,1735488649924,-159.0,0.00019905,2]
[347063923,1735488649934,-159.0,0.00019905,2]
[347063925,1735488649943,-160.54,0.00019905,2]
[347063927,1735488649952,-152.0,0.00019909,2]
[347063929,1735488649962,-152.0,0.00019909,2]
[347063931,1735488649970,-152.0,0.00019909,2]
[347063933,1735488649980,-152.0,0.00019909,2]
[347063935,1735488649989,-152.0,0.00019909,2]
[347063937,1735488649998,-152.0,0.00019909,2]
[347063939,1735488650008,-152.0,0.00019909,2]
[347063941,1735488650017,-152.0,0.00019909,2]
[347063943,1735488650027,-152.0,0.00019909,2]